bitfinex-derivatives/quotes_SOLF0:USTF0_20260311
["timestamp","ask_amount","ask_price","bid_price","bid_amount"]
[1773187946223,10.462,86.017,85.972,4.05516313]
[1773187946616,9.25514635,86.06,85.972,4.05516313]
[1773187946821,9.25514635,86.06,85.981,4.05516313]
[1773187947422,10.46,86.037,85.983,4.05516313]
[1773187947823,3.87540855,86.041,85.983,4.05516313]
[1773187948220,3.87540855,86.041,85.993,10.465]
[1773187949018,3.87540855,86.041,85.983,4.05516313]
[1773187950420,3.87540855,86.031,85.983,4.05516313]
[1773187951025,10.461,86.026,85.983,4.05516313]
[1773187952727,3.87540855,86.025,85.983,4.05516313]
[1773187953421,3.87540855,86.04,85.983,4.05516313]
[1773187954327,3.87540855,86.04,85.994,4.05516313]
[1773187955025,3.87540855,86.067,86.021,4.05516313]
[1773187955629,3.87540855,86.081,86.021,4.05516313]
[1773187956030,10.456,86.069,86.021,4.05516313]
[1773187956428,3.87540855,86.081,86.021,4.05516313]
[1773187956624,3.87540855,86.114,86.041,4.05516313]
[1773187956826,3.87540855,86.112,86.041,4.05516313]
[1773187957026,3.87540855,86.112,86.042,4.05516313]
[1773187957222,9.25514635,86.1,85.997,4.05516313]
[1773187957426,3.87540855,86.098,86.001,4.05516313]
[1773187957628,9.25514635,86.1,86.002,4.05516313]
[1773187957629,3.87540855,86.053,86.002,4.05516313]
[1773187957934,3.87540855,86.053,85.987,4.05516313]
[1773187958234,3.87540855,86.051,85.989,4.05516313]
[1773187960430,10.458,86.047,85.994,10.465]
[1773187961635,10.459,86.042,85.989,4.05516313]
[1773187962029,9.25514635,86.11,86.001,4.05516313]
[1773187962233,10.455,86.073,86.014,4.05516313]
[1773187962433,9.06398004,86.106,86.014,4.05516313]
[1773187962634,9.06398004,86.105,86.014,4.05516313]
[1773187962838,9.06398004,86.104,86.014,4.05516313]
[1773187963031,9.06398004,86.103,86.014,4.05516313]
[1773187963230,9.06398004,86.102,86.014,4.05516313]
[1773187963432,9.06398004,86.101,86.014,4.05516313]
[1773187963631,9.06398004,86.1,86.014,4.05516313]
[1773187963832,10.456,86.067,86.014,4.05516313]
[1773187964033,3.87540855,86.066,86.014,4.05516313]
[1773187967241,3.87540855,86.066,86.015,14.51716313]
[1773187968139,3.87540855,86.066,86.02,4.04248042]
[1773187969438,3.87540855,86.066,86.022,4.01651503]
[1773187972344,3.70281738,86.083,86.027,4.01651503]
[1773187973438,3.70281738,86.083,86.031,4.01651503]
[1773187974337,3.70281738,86.083,86.033,10.46]
[1773187974642,3.70281738,86.083,86.034,4.01651503]
[1773187975644,3.70281738,86.083,86.05,3.45325694]
[1773187976138,10.454,86.081,86.05,3.45325694]
[1773187976344,3.70281738,86.08,86.05,3.45325694]
[1773187980636,10.70721336,86.128,85.993,34.95]
[1773187980637,14.15581738,86.092,86.06,3.45325694]
[1773187981140,3.70281738,86.082,86.05,3.45325694]
[1773187982238,3.70281738,86.072,86.017,4.01651503]
[1773187982546,3.70281738,86.072,86.03,3.45325694]
[1773187982846,10.70721336,86.122,85.983,34.95]
[1773187982847,10.455,86.077,86.05,3.45325694]
[1773187983034,10.455,86.077,86.029,4.01651503]
[1773187983239,10.455,86.077,86.05,3.45325694]
[1773187984941,3.70281738,86.076,86.05,3.45325694]
[1773187985540,3.70281738,86.076,86.04,3.45325694]
[1773187985746,3.70281738,86.076,86.05,3.45325694]
[1773187987654,3.70281738,86.076,86.031,10.46]
[1773187987655,3.70281738,86.101,86.06,3.45325694]
[1773187987951,3.70281738,86.101,86.05,3.45325694]
[1773187988347,3.70281738,86.101,86.06,3.45325694]
[1773187988948,10.453,86.092,86.06,3.45325694]
[1773187989250,0.42099213,86.091,86.06,3.45325694]
[1773187989848,10.452,86.097,86.06,3.45325694]
[1773187990339,10.452,86.097,86.051,4.01651503]
[1773187990340,0.42099005,86.105,86.07,3.45325694]
[1773187991052,0.42098813,86.132,86.1,3.45325694]
[1773187992050,10.449,86.123,86.09,3.45325694]
[1773187992649,0.42098813,86.132,86.1,3.45325694]
[1773187993049,0.42098813,86.132,86.071,4.01651503]
[1773187993342,0.42098813,86.132,86.09,3.45325694]
[1773187994551,0.47861554,86.146,86.1,3.45325694]
[1773187995346,10.448,86.131,86.1,3.45325694]
[1773187995544,10.448,86.131,86.1,3.44942253]
[1773187996053,10.94472856,86.125,86.09,3.44942253]
[1773187996350,0.49572856,86.125,86.08,3.44942253]
[1773187997444,10.45,86.116,86.08,3.44942253]
[1773187999247,10.451,86.109,86.07,3.44942253]
[1773187999444,0.49167428,86.109,86.07,3.44942253]
[1773188000049,34.95,86.152,86.09,3.44942253]
[1773188000050,0.49167245,86.122,86.09,3.44942253]
[1773188000550,0.49167245,86.122,86.08,7.27296623]
[1773188001358,10.449,86.121,86.08,7.27296623]
[1773188001753,0.49167245,86.122,86.08,7.27296623]
[1773188001955,0.49167245,86.122,86.07,3.44942253]
[1773188002957,0.49167245,86.122,86.08,3.44942253]
[1773188004456,10.45,86.119,86.08,3.44942253]
[1773188004659,10.45,86.119,86.09,3.44942253]
[1773188006162,10.45,86.119,86.083,3.82617791]
[1773188008552,10.449,86.128,86.09,3.44942253]
[1773188008861,0.48404104,86.135,86.09,3.82735162]
[1773188010361,10.449,86.121,86.09,3.82735162]
[1773188010956,0.45757905,86.137,86.091,3.84058099]
[1773188011163,0.45757905,86.129,86.081,3.84058099]
[1773188012161,10.45,86.116,86.081,3.84058099]
[1773188013658,10.92626274,86.114,86.07,3.44942253]
[1773188013862,10.92626274,86.114,86.071,3.83123678]
[1773188014761,0.47626274,86.114,86.08,3.44942253]
[1773188015062,10.449,86.122,86.08,3.44942253]
[1773188016355,0.47588409,86.119,86.073,3.83123673]
[1773188017165,10.451,86.107,86.073,3.83123673]
[1773188018564,10.452,86.102,86.06,7.28106173]
[1773188018765,0.47545036,86.106,86.06,7.28106173]
[1773188018967,0.47545036,86.106,86.061,3.8316392]
[1773188019869,10.452,86.101,86.061,3.8316392]
[1773188021770,0.47545036,86.106,86.061,3.8316392]
[1773188022367,10.452,86.104,86.061,3.8316392]
[1773188022569,10.90926264,86.104,86.061,3.8316392]
[1773188022773,0.45726264,86.103,86.061,3.8316392]
[1773188024171,0.43596763,86.089,86.05,3.44942253]
[1773188024768,0.43596763,86.089,86.05,7.3007995]
[1773188025973,10.453,86.09,86.0,34.95]
[1773188025974,0.40811153,86.087,86.04,3.44942253]
[1773188026483,10.454,86.082,86.04,7.31472618]
[1773188027682,0.34705569,86.066,86.026,3.89842584]
[1773188027874,0.34705569,86.08,86.041,4.0587817]
[1773188028272,10.455,86.079,86.041,4.0587817]
[1773188029277,10.454,86.087,86.041,4.0587817]
[1773188029983,10.82573766,86.087,86.041,4.0587817]
[1773188031078,0.37208683,86.086,86.041,4.0587817]
[1773188032285,10.452,86.098,86.051,3.95339741]
[1773188033185,10.452,86.098,86.061,3.95339741]
[1773188033484,10.451,86.107,86.07,3.44942253]
[1773188033984,0.35438325,86.099,86.061,3.95339741]
[1773188037180,10.452,86.098,86.061,3.95339741]
[1773188038986,10.79378155,86.089,86.05,3.44942253]
[1773188039286,0.34078155,86.089,86.05,3.44942253]
[1773188039688,0.34078155,86.089,86.05,7.40281994]
[1773188039889,0.3388608,86.109,86.06,3.44942253]
[1773188040086,10.452,86.098,86.06,3.44942253]
[1773188040286,10.452,86.098,86.06,7.40281994]
[1773188041490,0.35878303,86.106,86.061,3.95339741]
[1773188042092,10.451,86.104,86.061,3.95339741]
[1773188042286,0.35878303,86.106,86.061,3.95339741]
[1773188043385,10.452,86.097,86.061,3.95339741]
[1773188048490,0.34990258,86.133,86.071,3.95339741]
[1773188048795,0.34990258,86.129,86.08,7.40281994]
[1773188048991,0.34990258,86.119,86.08,3.95339741]
[1773188049191,0.34990258,86.119,86.07,3.44942253]
[1773188049794,10.451,86.106,86.068,3.95339741]
[1773188049996,0.34990258,86.119,86.07,3.44942253]
[1773188050296,0.34990258,86.119,86.071,3.95339741]
[1773188051396,0.4969613,86.115,86.071,3.95339741]
[1773188051991,10.449,86.122,86.071,3.95339741]
[1773188052192,10.449,86.122,86.081,3.95339741]
[1773188052588,10.9459594,86.122,86.081,3.95339741]
[1773188053588,10.45,86.12,86.081,3.95339741]
[1773188053891,0.49711928,86.119,86.068,3.95339741]
[1773188054995,10.45,86.117,86.071,3.95339741]
[1773188055192,0.49711838,86.116,86.071,3.95339741]
[1773188055589,0.50901261,86.11,86.071,3.95339741]
[1773188056700,0.50901173,86.109,86.071,3.95339741]
[1773188057895,0.50897849,86.106,86.06,3.45173643]
[1773188059191,0.50897849,86.106,86.06,7.40513384]
[1773188059397,10.452,86.103,86.06,7.40513384]
[1773188059597,0.5003689,86.102,86.06,7.40513384]
[1773188059799,0.5003689,86.099,86.06,3.95339741]
[1773188060000,10.453,86.094,86.06,3.95339741]
[1773188060500,0.5003689,86.099,86.06,7.40513384]
[1773188060697,487.181,86.206,86.061,3.94623153]
[1773188060698,0.50057117,86.111,86.061,3.94623153]
[1773188060899,0.50057117,86.111,86.071,3.94623153]
[1773188061100,0.50057117,86.109,86.071,3.94623153]
[1773188062405,10.451,86.108,86.071,3.94623153]
[1773188073916,0.50396646,86.116,86.071,3.94623153]
[1773188076313,3.45173643,86.12,86.071,3.94623153]
[1773188076314,0.50093104,86.107,86.071,3.94623153]
[1773188076519,0.50093104,86.107,86.059,3.94623153]
[1773188076708,0.50093031,86.099,86.059,3.94623153]
[1773188078322,10.452,86.097,86.059,3.94623153]
[1773188079621,10.452,86.097,86.061,3.94623153]
[1773188081118,10.453,86.09,86.061,3.94623153]
[1773188082016,0.5122356,86.085,86.046,3.94623153]
[1773188082523,0.51223564,86.079,86.035,3.94623153]
[1773188082926,10.456,86.068,86.035,3.94623153]
[1773188085328,10.97928822,86.068,86.021,3.94623153]
[1773188085529,3.45173643,86.08,86.021,3.94623153]
[1773188085530,10.456,86.065,86.021,3.94623153]
[1773188090835,0.7678607,86.064,86.021,3.94623153]
[1773188092137,10.457,86.06,86.021,3.94623153]
[1773188092432,0.75074597,86.059,86.01,3.45173643]
[1773188093138,0.75074597,86.059,86.011,3.89436855]
[1773188093338,10.458,86.053,86.011,3.89436855]
[1773188093640,0.75179118,86.052,86.011,3.89436855]
[1773188097338,10.458,86.051,86.011,3.89436855]
[1773188097537,0.6662277,86.05,86.011,3.89436855]
[1773188097940,10.459,86.04,86.011,3.89436855]
[1773188101037,0.65156935,86.034,85.991,3.89436855]
[1773188101242,0.65156935,86.047,86.01,3.45173643]
[1773188101437,0.65156935,86.047,86.011,3.89436855]
[1773188103337,10.459,86.044,86.011,3.89436855]
[1773188105643,0.65156935,86.047,86.011,3.89436855]
[1773188107239,11.10956935,86.047,86.011,3.89436855]
[1773188108738,11.10956935,86.047,86.0,3.45173643]
[1773188108739,0.70714729,86.039,86.0,3.89436855]
[1773188108943,0.70714729,86.039,85.981,3.89436855]
[1773188109142,0.70714729,86.039,85.991,3.89436855]
[1773188110443,10.46,86.036,85.991,3.89436855]
[1773188116549,10.46,86.033,85.991,3.89436855]
[1773188117054,0.7083675,86.035,85.991,3.89436855]
[1773188118455,10.46,86.033,85.991,3.89436855]
[1773188120651,11.16056976,86.033,85.991,3.89436855]
[1773188121852,0.69029304,86.046,85.993,3.93762287]
[1773188122058,0.69029304,86.046,86.011,3.93762287]
[1773188125452,10.457,86.06,86.021,3.93762287]
[1773188126563,11.13130083,86.056,86.021,3.93762287]
[1773188127863,0.58139534,86.074,86.031,3.93762287]
[1773188127864,10.456,86.064,86.031,3.93762287]
[1773188128062,0.72210313,86.073,86.031,3.93762287]
[1773188128961,3.45803887,86.05,85.97,34.84]
[1773188129160,0.72210276,86.049,86.0,3.45803887]
[1773188129666,10.459,86.039,86.001,3.93762287]
[1773188130759,0.74742346,86.047,86.001,3.93762287]
[1773188132371,10.459,86.045,86.001,3.93762287]
[1773188134174,0.74742346,86.047,86.004,3.93762287]
[1773188135875,0.74742346,86.047,86.01,3.45803887]
[1773188136875,0.74742346,86.047,86.01,7.39566174]
[1773188137077,0.74742346,86.047,86.01,3.93762287]
[1773188139381,11.23433097,86.044,86.01,3.93762287]
[1773188139588,0.77533097,86.043,86.001,3.93762287]
[1773188140386,10.459,86.041,86.001,3.93762287]
[1773188141090,0.77533097,86.043,86.001,3.93762287]
[1773188142288,11.23433097,86.043,86.001,3.93762287]
[1773188143590,0.77517298,86.042,86.001,3.93762287]
[1773188144093,10.459,86.043,86.001,3.93762287]
[1773188144094,11.23417298,86.039,86.001,3.93762287]
[1773188144687,0.77517267,86.038,86.001,3.93762287]
[1773188146394,10.461,86.027,86.001,3.93762287]
[1773188146893,11.23600208,86.027,85.991,3.93762287]
[1773188147096,0.77500208,86.026,85.991,3.93762287]
[1773188150699,10.46,86.036,85.991,3.93762287]
[1773188150894,10.46,86.036,86.001,3.7315824]
[1773188152802,0.80515672,86.037,86.001,3.7315824]
[1773188156396,11.26515672,86.037,86.001,3.7315824]
[1773188157600,10.46,86.03,86.001,3.7315824]
[1773188157804,0.76454929,86.029,85.99,3.7315824]
[1773188158096,10.462,86.016,85.978,3.7315824]
[1773188158302,0.7645493,86.015,85.978,3.7315824]
[1773188158898,0.76454903,86.009,85.961,3.7315824]
[1773188160100,10.463,86.006,85.963,3.7315824]
[1773188160804,0.76454903,86.009,85.963,3.7315824]
[1773188161004,0.76454903,86.009,85.971,3.7315824]
[1773188161706,0.82048894,86.022,85.981,3.7315824]
[1773188161906,3.45803887,86.02,85.981,3.7315824]
[1773188162998,0.82048869,86.034,85.991,3.7315824]
[1773188163195,0.82048869,86.034,85.926,20.947]
[1773188163196,0.82048869,86.046,86.001,3.7315824]
[1773188164507,10.459,86.046,86.011,3.7315824]
[1773188164909,11.2809111,86.04,86.0,3.7315824]
[1773188165408,11.2809111,86.04,86.001,3.7315824]
[1773188165707,10.459,86.04,86.001,3.7315824]
[1773188166704,10.46,86.032,86.001,3.7315824]
[1773188166909,10.46,86.032,85.99,3.45803887]
[1773188166910,0.83950964,86.039,85.98,3.45803887]
[1773188167208,10.461,86.025,85.932,28.43935505]
[1773188167508,10.461,86.025,85.98,3.45803887]
[1773188168805,10.461,86.025,85.981,3.7315824]
[1773188169206,14.49736616,86.025,85.981,3.7315824]
[1773188171600,10.46,86.033,85.982,3.7315824]
[1773188171804,10.46,86.033,85.991,3.7315824]
[1773188172005,14.49636616,86.033,85.991,3.7315824]
[1773188173511,10.461,86.026,85.991,3.7315824]
[1773188173712,4.03636616,86.032,85.991,3.7315824]
[1773188174211,3.45803887,86.05,86.0,7.18962127]
[1773188174212,4.03636616,86.049,86.0,7.18962127]
[1773188174514,4.03636616,86.047,86.0,3.7315824]
[1773188174814,4.03636616,86.047,86.0,7.18962127]
[1773188175412,10.459,86.042,86.001,3.7315824]
[1773188176814,14.49536616,86.042,86.001,3.7315824]
[1773188177212,10.46,86.038,86.001,3.7315824]
[1773188178011,4.03636616,86.041,86.002,3.7315824]
[1773188178215,10.458,86.047,86.001,10.464]
[1773188178216,10.458,86.047,86.011,3.7315824]
[1773188179606,10.459,86.04,86.011,3.7315824]
[1773188179806,20.91,86.076,85.993,10.465]
[1773188179807,3.83094712,86.039,85.993,10.465]
[1773188180217,3.83094712,86.059,86.011,3.75808398]
[1773188180413,3.83094712,86.057,86.011,3.75808398]
[1773188180717,3.83094712,86.039,85.996,3.75808398]
[1773188181716,3.83094712,86.039,86.0,3.45661577]
[1773188182015,3.45661577,86.05,86.0,3.45661577]
[1773188182016,3.83094712,86.037,86.0,3.45661577]
[1773188183314,10.46,86.036,86.0,3.45661577]
[1773188183712,3.83094712,86.037,86.0,3.45661577]
[1773188184618,3.83094712,86.037,86.0,7.21469975]
[1773188186815,3.83094712,86.037,86.0,3.45661577]
[1773188187020,3.83094712,86.037,86.001,3.75808398]
[1773188187920,10.459,86.044,86.01,7.21469975]
[1773188189024,10.459,86.044,86.01,3.75808398]
[1773188189423,10.459,86.044,86.01,7.21469975]
[1773188189719,10.459,86.044,86.01,3.75808398]
[1773188192025,14.28994712,86.044,86.01,3.75808398]
[1773188192723,3.83094712,86.043,86.01,3.75808398]
[1773188196230,10.82797462,86.073,85.956,20.939]
[1773188196231,3.83094712,86.069,86.021,3.75808398]
[1773188196922,3.83094712,86.069,86.023,3.75808398]
[1773188198330,3.83094712,86.065,86.023,3.75808398]
[1773188199434,3.83094712,86.063,86.023,3.75808398]
[1773188200325,3.83094712,86.059,86.011,3.75808398]
[1773188200525,3.83094712,86.039,85.991,3.75808398]
[1773188201528,3.83094712,86.039,85.993,10.465]
[1773188201725,3.83094712,86.039,85.994,3.75808398]
[1773188203324,3.83094712,86.039,86.002,10.464]
[1773188203524,3.83094712,86.039,86.003,3.75808398]
[1773188203827,3.83094712,86.046,86.003,3.75808398]
[1773188204022,3.83094712,86.046,86.01,3.45661577]
[1773188204331,3.83094712,86.046,86.011,3.75808398]
[1773188204531,10.457,86.056,86.011,3.75808398]
[1773188205030,10.456,86.066,86.021,3.75808398]
[1773188206028,10.456,86.066,86.031,3.75808398]
[1773188206231,3.83094712,86.07,86.031,3.75808398]
[1773188207529,3.83094712,86.07,85.974,34.84]
[1773188207530,3.83094712,86.067,86.02,3.45661577]
[1773188207728,3.83094712,86.067,86.016,3.75808398]
[1773188208034,4.05944311,86.061,86.016,3.75808398]
[1773188208835,4.05944311,86.059,86.02,3.45661577]
[1773188214447,3.45661577,86.07,86.02,3.45661577]
[1773188214448,3.78804898,86.057,86.02,3.45661577]
[1773188216741,3.78804898,86.057,86.021,3.75454415]
[1773188216938,3.78804898,86.066,86.024,3.75454415]
[1773188220539,10.456,86.067,86.031,3.75454415]
[1773188221841,3.78804898,86.063,86.02,7.21115992]
[1773188222043,3.78804898,86.059,86.01,3.45661577]
[1773188222249,3.78804898,86.059,86.011,3.75454415]
[1773188222443,3.78804898,86.049,86.0,3.45661577]
[1773188222845,3.78804898,86.039,85.99,3.45661577]
[1773188223343,3.78804898,86.039,85.991,3.75454415]
[1773188223647,3.78804898,86.039,86.001,3.75454415]
[1773188227943,10.459,86.044,86.001,3.75454415]
[1773188230342,3.78804898,86.038,86.0,3.45661577]
[1773188230544,3.78804898,86.038,85.991,3.75454415]
[1773188231051,3.78804898,86.033,85.991,3.75454415]
[1773188232145,10.459,86.04,86.001,3.75454415]
[1773188232742,3.78804898,86.048,86.001,3.75454415]
[1773188233843,10.46,86.038,86.001,3.75454415]
[1773188236654,3.78804898,86.035,86.0,3.45661577]
[1773188236947,3.78804898,86.061,86.02,7.21115992]
[1773188237155,3.78804898,86.061,86.03,3.45661577]
[1773188237547,3.78804898,86.078,86.031,3.75454415]
[1773188237753,3.78804898,86.078,86.04,3.45661577]
[1773188237950,3.78804898,86.093,86.05,3.45661577]
[1773188238145,3.78804898,86.093,86.041,3.75454415]
[1773188238350,3.78804898,86.081,86.041,3.75454415]
[1773188239253,4.36944432,86.074,86.031,3.75454415]
[1773188240357,10.455,86.072,86.031,3.75454415]
[1773188241161,4.36944432,86.074,86.031,3.75454415]
[1773188246266,4.36944432,86.074,86.04,3.45447203]
[1773188249062,4.36944432,86.074,86.031,3.75454415]
[1773188250564,3.91002695,86.072,86.031,3.75454415]
[1773188251967,3.45447203,86.06,86.01,3.45447203]
[1773188252159,3.91002695,86.059,86.01,3.45447203]
[1773188253362,3.91002695,86.048,86.01,3.45447203]
[1773188253558,3.91002695,86.048,86.004,3.88927984]
[1773188254058,14.36902695,86.046,86.004,3.88927984]
[1773188254663,3.91002695,86.045,86.004,3.88927984]
[1773188255565,14.36902695,86.044,86.004,3.88927984]
[1773188255767,3.91002695,86.043,86.004,3.88927984]
[1773188258067,3.91002695,86.043,85.942,28.43935505]
[1773188258068,3.91002695,86.03,85.991,3.88927984]
[1773188259269,3.91002695,86.026,85.98,3.88927984]
[1773188259469,3.91002695,86.026,85.981,3.88927984]
[1773188260165,3.91002695,86.041,85.991,3.88927984]
[1773188260372,34.84,86.061,85.981,3.88927984]
[1773188260373,3.91002695,86.029,85.981,3.88927984]
[1773188260568,3.91002695,86.033,85.974,3.88927984]
[1773188260767,3.91002695,86.033,85.833,163.097]
[1773188260768,34.84,85.928,85.879,0.00077063]
[1773188260969,3.45447203,85.89,85.839,64.48044551]
[1773188261365,3.45447203,85.89,85.841,64.48054254]
[1773188261572,3.45447203,85.91,85.841,64.48054254]
[1773188261767,10.472,85.931,85.861,64.48054254]
[1773188261972,3.45447203,85.92,85.871,64.48054254]
[1773188262168,20.934,85.98,85.871,64.48054254]
[1773188262169,3.45447203,85.91,85.871,64.48054254]
[1773188262872,3.45447203,85.93,85.881,64.48052113]
[1773188263571,3.45447203,85.92,85.881,64.48052113]
[1773188264571,3.45447203,85.91,85.881,64.48052113]
[1773188264874,3.45447203,85.92,85.881,64.48052113]
[1773188265069,3.45447203,85.92,85.861,64.48520668]
[1773188265574,3.45447203,85.91,85.861,64.48520668]
[1773188265772,3.45447203,85.9,85.861,64.48520668]
[1773188265968,162.86,85.959,85.844,64.50431729]
[1773188265969,3.45447203,85.89,85.844,64.50431729]
[1773188267466,3.45447203,85.88,85.83,3.45447203]
[1773188267871,3.45447203,85.88,85.83,67.96321752]
[1773188269066,10.478,85.889,85.84,67.96341673]
[1773188269272,3.45447203,85.89,85.84,67.96341673]
[1773188269476,3.45447203,85.9,85.85,3.45447203]
[1773188269673,3.45447203,85.9,85.84,67.96341673]
[1773188269873,3.45447203,85.89,85.84,67.96341673]
[1773188270476,3.45447203,85.9,85.851,64.51599674]
[1773188271679,10.475,85.912,85.851,64.51599674]
[1773188271878,9.29338182,85.94,85.851,64.51599674]
[1773188273171,10.473,85.928,85.851,64.51599674]
[1773188273369,9.29338182,85.94,85.851,64.51599674]
[1773188274371,10.474,85.917,85.851,64.51599674]
[1773188274572,10.474,85.917,85.83,9.29338182]
[1773188274573,34.84,85.939,85.855,64.55038623]
[1773188275176,10.471,85.942,85.871,64.55038623]
[1773188277477,10.47,85.953,85.876,64.54100002]
[1773188279479,10.47,85.953,85.884,64.57736024]
[1773188280381,10.47,85.953,85.886,64.57761291]
[1773188280972,9.29338182,85.96,85.886,64.57761291]
[1773188282482,10.471,85.942,85.886,64.57761291]
[1773188283085,10.47,85.952,85.891,64.58099488]
[1773188284384,10.47,85.952,85.891,75.05799488]
[1773188286087,10.471,85.942,85.891,64.58099488]
[1773188288483,10.472,85.933,85.891,64.58099488]
[1773188288688,34.84,85.979,85.891,64.58099488]
[1773188288986,34.84,85.959,85.891,64.58099488]
[1773188289186,10.473,85.923,85.891,47.12699488]
[1773188291688,10.473,85.923,85.88,3.46692357]
[1773188291887,10.473,85.923,85.88,59.3094473]
[1773188292787,10.473,85.923,85.88,3.46692357]
[1773188292987,10.473,85.923,85.87,3.46692357]
[1773188293388,10.473,85.923,85.871,55.84319112]
[1773188294291,10.475,85.915,85.871,55.84319112]
[1773188295592,10.475,85.915,85.88,3.46692357]
[1773188295989,10.475,85.915,85.871,55.84319112]
[1773188298086,10.475,85.915,85.88,3.46692357]
[1773188299494,10.475,85.915,85.871,55.84319112]
[1773188300996,34.84,85.874,85.705,163.342]
[1773188301186,3.46692357,85.83,85.78,3.46692357]
[1773188301491,3.46692357,85.84,85.78,3.46692357]
[1773188301687,9.69418633,85.839,85.76,9.30737092]
[1773188301994,44.53418633,85.838,85.74,9.30737092]
[1773188302187,9.30737092,85.82,85.73,9.30737092]
[1773188302388,10.488,85.808,85.73,9.30737092]
[1773188303089,10.486,85.82,85.748,46.97122157]
[1773188303282,34.84,85.839,85.748,46.97122157]
[1773188303592,10.488,85.808,85.748,46.97122157]
[1773188307187,10.488,85.808,85.73,9.30737092]
[1773188307188,34.84,85.779,85.717,46.95610458]
[1773188307384,9.30737092,85.76,85.681,46.95394719]
[1773188307989,10.494,85.758,85.686,46.95394719]
[1773188309198,9.30737092,85.74,85.67,46.95403509]
[1773188309795,10.498,85.722,85.67,46.95403509]
[1773188310198,163.211,85.774,85.621,46.94270315]
[1773188310199,10.501,85.698,85.621,46.94270315]
[1773188310395,9.30737092,85.74,85.641,46.94274223]
[1773188310791,10.497,85.728,85.643,46.94274223]
[1773188311398,10.497,85.728,85.643,57.45074223]
[1773188311901,9.30737092,85.74,85.657,46.74529443]
[1773188313497,10.496,85.738,85.657,46.74529443]
[1773188314710,10.496,85.738,85.661,46.71689283]
[1773188316818,10.496,85.738,85.663,46.69730568]
[1773188318018,10.496,85.738,85.62,9.30737092]
[1773188318019,10.495,85.751,85.681,46.68357377]
[1773188318219,9.30737092,85.78,85.681,46.68357377]
[1773188319522,10.493,85.765,85.681,57.18657377]
[1773188319721,9.30737092,85.78,85.681,57.18657377]
[1773188321426,10.494,85.752,85.681,57.18657377]
[1773188322126,10.496,85.741,85.681,46.68357377]
[1773188322919,10.497,85.73,85.681,46.68357377]
[1773188323118,10.497,85.73,85.659,46.65963654]
[1773188324222,9.30737092,85.74,85.659,46.65963654]
[1773188324426,34.84,85.739,85.659,46.65963654]
[1773188325126,9.30737092,85.72,85.659,46.65963654]
[1773188325325,10.5,85.707,85.659,46.65963654]
[1773188326526,9.30737092,85.74,85.659,46.65963654]
[1773188326929,34.84,85.759,85.659,46.65963654]
[1773188327128,34.84,85.759,85.672,46.64872767]
[1773188328227,10.497,85.727,85.672,46.64872767]
[1773188330331,10.497,85.727,85.674,46.64915899]
[1773188330930,34.84,85.759,85.677,10.503]
[1773188330931,10.496,85.738,85.677,10.503]
[1773188331126,10.496,85.738,85.678,46.64750561]
[1773188331834,10.497,85.727,85.678,46.64750561]
[1773188333930,10.497,85.727,85.67,9.30737092]
[1773188333931,10.496,85.738,85.681,46.64612438]
[1773188334332,34.84,85.759,85.681,46.64612438]
[1773188335029,10.496,85.739,85.685,46.64532802]
[1773188337333,10.497,85.727,85.685,46.64532802]
[1773188337530,10.497,85.727,85.632,21.019]
[1773188337531,9.30737092,85.72,85.631,46.63445292]
[1773188338031,10.5,85.703,85.652,46.63445292]
[1773188338223,9.30737092,85.72,85.652,46.63445292]
[1773188339028,10.5,85.702,85.654,46.63366825]
[1773188339432,9.30737092,85.72,85.654,46.63366825]
[1773188340335,10.499,85.711,85.656,46.64770435]
[1773188341036,10.498,85.721,85.667,46.64770435]
[1773188341434,10.498,85.721,85.67,46.64864667]
[1773188341933,10.497,85.73,85.68,46.64864667]
[1773188342231,9.30737092,85.76,85.68,46.64864667]
[1773188342435,10.495,85.748,85.68,46.64864667]
[1773188342638,9.30737092,85.76,85.69,10.502]
[1773188342838,9.30737092,85.76,85.691,46.6479408]
[1773188343038,10.496,85.74,85.691,46.6479408]
[1773188344437,10.496,85.74,85.693,46.66640013]
[1773188345238,10.77167909,85.771,85.693,46.66640013]
[1773188345435,9.75091582,85.77,85.693,46.66640013]
[1773188345637,10.494,85.757,85.71,46.65421997]
[1773188345941,9.75091582,85.756,85.71,46.65421997]
[1773188346142,9.75091582,85.755,85.71,46.65421997]
[1773188346341,9.75091582,85.754,85.71,46.65421997]
[1773188346541,10.77167909,85.774,85.71,46.65421997]
[1773188346542,9.75091582,85.753,85.71,46.65421997]